Cogmind - Beta 10.1 --- EXPLORER MODE // 2020.10.05 @ 21:03:35 Player: 1Q84 Result: Self-destructed Performance ------------- Evolutions (1) 500 Regions Visited (6) 1200 Robots Destroyed (37) 185 Value Destroyed (1801) 1801 Prototype IDs (10) 200 Alien Tech Used (0) 0 Bonus (1145) 1145 TOTAL SCORE: 5031 Bonus ------- High Alert Combat Kills 156 Follower Combat Kills 794 Entered Garrisons 200 Friendly Fire -5 Cogmind --------- Core Integrity 353/400 Matter 300/300 Energy 280/280 System Corruption 1% Temperature Cool (0) Movement Walking (150) Ox1 Location -9/Recycling Parts ------- > --- POWER (1) -------- Cooled Ion Engine > --- PROPULSION (3) --- Aluminum Leg Aluminum Leg Aluminum Leg > --- UTILITY (4) ------ Large Storage Unit Large Storage Unit Medium Armor Plating Drone Bay (1/2) > --- WEAPON (2) ------- Heavy Particle Cannon Mini Grenade Launcher > --- INVENTORY (16) --- Improved Flight Unit Medium Storage Unit Sensor Array Medium Armor Plating Relay Coupler [NC] (42) Relay Coupler [Swarmer] (64) Relay Coupler [Grunt] (41) Improved Lightning Gun Improved Medium Laser Particle Cannon Particle Cannon Heavy Particle Cannon Ion Burst Cannon Grenade Launcher Datajack Datajack Peak State ------------ > --- POWER ------------ Cooled Ion Engine > --- PROPULSION ------- Aluminum Leg Aluminum Leg Aluminum Leg > --- UTILITY ---------- Large Storage Unit Large Storage Unit Medium Armor Plating Drone Bay > --- WEAPON ----------- Heavy Particle Cannon Ion Burst Cannon > --- INVENTORY -------- Improved Flight Unit Medium Storage Unit Sensor Array Medium Armor Plating Improved Lightning Gun Improved Medium Laser Improved Medium Laser Improved Medium Laser Particle Cannon Particle Cannon Heavy Particle Cannon Grenade Launcher Mini Grenade Launcher Datajack Datajack [Rating: 27] Favorites ----------- Power Cooled Ion Engine Engine Cooled Ion Engine Power Core Light Nuclear Core Propulsion Aluminum Leg Leg Aluminum Leg Utility Large Storage Unit Device Sensor Array Storage Large Storage Unit Protection Medium Armor Plating Weapon Particle Cannon Energy Gun Improved Medium Laser Energy Cannon Particle Cannon Ballistic Gun Assault Rifle Launcher Mini Grenade Launcher Build | -11 -10 -10 -9 -9 -9 -9 ------- Run | Scr Mat Min Mat Sto Gar Rec Slots Evolved 3 | . 1 . 2 . . . Power . | . . . . . . . Propulsion 1 | . . . 1 . . . Utility 2 | . 1 . 1 . . . Weapon . | . . . . . . . Parts Attached 28 | 3 9 . . 8 8 . Power 3 | . 2 . . 1 . . Engine 2 | . 1 . . 1 . . Core 1 | . 1 . . . . . Reactor . | . . . . . . . Propulsion 3 | 2 . . . 1 . . Treads . | . . . . . . . Leg 3 | 2 . . . 1 . . Wheel . | . . . . . . . Hover . | . . . . . . . Flight . | . . . . . . . Utility 10 | . 4 . . 3 3 . Device 4 | . 1 . . 1 2 . Storage 3 | . 1 . . 2 . . Processor . | . . . . . . . Hackware . | . . . . . . . Protection 3 | . 2 . . . 1 . Artifact . | . . . . . . . Weapon 12 | 1 3 . . 3 5 . Energy Gun 3 | 1 . . . 2 . . Energy Cannon 6 | . 2 . . 1 3 . Ballistic Gun 1 | . 1 . . . . . Ballistic Cannon . | . . . . . . . Launcher 2 | . . . . . 2 . Special Weapon . | . . . . . . . Impact Weapon . | . . . . . . . Slashing Weapon . | . . . . . . . Piercing Weapon . | . . . . . . . Special Melee Weapon . | . . . . . . . Unidentified Prototypes 4 | . . . . 4 . . Parts Lost 1 | . . . . . 1 . Power . | . . . . . . . Propulsion . | . . . . . . . Utility 1 | . . . . . 1 . Weapon . | . . . . . . . Highest Loss Streak 1 | . . . . . 1 . Average Slot Usage (%) 97 | . 87 100 80 97 99 100 Engine 7 | . 4 . . 6 10 10 Core 3 | . 7 12 10 3 . . Leg 28 | . 25 25 20 28 30 30 Device 13 | . 7 12 10 19 11 10 Storage 16 | . 10 12 10 16 20 20 Protection 7 | . 11 12 10 3 8 10 Energy Gun 3 | . 11 . . 3 . . Energy Cannon 14 | . 1 25 20 16 15 10 Launcher 2 | . . . . . 3 10 Naked Turns . | . . . . . . . Heaviest Build 67 | 2 29 29 29 54 67 60 Greatest Support 30 | 20 20 20 20 30 30 30 Greatest Overweight (x) 2 | . 1 1 1 1 2 1 Average Overweight (x) 1 | . . 1 1 1 1 1 Largest Inventory Capacity 16 | 4 8 8 8 16 16 16 Average Capacity 13 | 4 7 8 8 13 16 16 Most Carried 16 | 3 8 8 8 15 16 16 Average Carried 12 | 2 6 8 8 12 15 16 Final Capacity 16 | 4 8 8 8 16 16 16 Final Carried 16 | 3 8 8 8 15 16 16 Class Distribution -------------------- 70% | Hacker-Mutant 29% | Commander-Mutant Dominant Class ---------------- Hacker-Mutant | -10/Materials Hacker-Mutant | -10/Mines Hacker-Mutant | -9/Materials Commander-Mutant | -9/Storage Hacker-Mutant | -9/Garrison Hacker-Mutant | -9/Recycling Resources | -11 -10 -10 -9 -9 -9 -9 ----------- Run | Scr Mat Min Mat Sto Gar Rec Matter Collected 652 | 230 72 . . 105 245 . Remotely . | . . . . . . . Salvage Created 1207 | . 380 . . 46 781 . Parts 73 | . 27 . . 1 45 . Haulers Intercepted . | . . . . . . . Recyclers Shooed 1 | . . . . 1 . . Parts Field Recycled . | . . . . . . . Retrieved Matter . | . . . . . . . Parts Self-Destructed . | . . . . . . . Prevented . | . . . . . . . Kills | -11 -10 -10 -9 -9 -9 -9 ------- Run | Scr Mat Min Mat Sto Gar Rec Combat Hostiles Destroyed 35 | . 10 . . 1 24 . Guns 10 | . 10 . . . . . Cannons 15 | . . . . 1 14 . AOE 10 | . . . . . 10 . Classes Destroyed 6 | . 3 . . . 3 . Watcher 2 | . 2 . . . . . Swarmer 7 | . 4 . . . 3 . Grunt 19 | . 6 . . 1 12 . Brawler 1 | . . . . . 1 . Duelist 2 | . . . . . 2 . Sentry 6 | . . . . . 6 . Best Kill Streak 4 | . 3 . . 1 4 . Combat Bots Only 4 | . 2 . . 1 4 . Max Kills in Single Turn 2 | . 2 . . 1 2 . Gunslinging 1 | . 1 . . . . . Exploded 2 | . . . . . 2 . Melee . | . . . . . . . Uniques/NPCs Destroyed . | . . . . . . . Combat | -11 -10 -10 -9 -9 -9 -9 -------- Run | Scr Mat Min Mat Sto Gar Rec Damage Taken 524 | . 127 . . 50 347 . Core 63 | . 16 . . 10 37 . Absorbed by Shields . | . . . . . . . Core Remaining (%) 96 | 100 . 93 . . . . Volleys Fired 68 | . 21 . . 6 41 . Largest 2 | . 2 . . 2 2 . Hottest 175 | . 60 . . 168 175 . Shots Fired 107 | . 25 . . 12 70 . Gun 27 | . 25 . . 2 . . Cannon 63 | . . . . 10 53 . Launcher 17 | . . . . . 17 . Special . | . . . . . . . Kinetic 4 | . 4 . . . . . Thermal 65 | . . . . 12 53 . Explosive 17 | . . . . . 17 . Electromagnetic 21 | . 21 . . . . . Robot Hit Streak 20 | . 12 . . 13 20 . Robot Miss Streak 2 | . 1 . . 1 2 . Penetration Max . | . . . . . . . Secondary Targets 2 | . 2 . . . . . Max Gunslinging Chain 1 | . 1 . . . . . Shots Hit Robots 70 | . 23 . . 5 42 . Core Hits 55 | . 17 . . 1 37 . Critical Hits 2 | . . . . . 2 . Critical Kills 2 | . . . . . 2 . Critical Parts Destroyed . | . . . . . . . Melee Attacks . | . . . . . . . Impact . | . . . . . . . Slashing . | . . . . . . . Piercing . | . . . . . . . Sneak Attacks . | . . . . . . . Combat Hostiles . | . . . . . . . Follow-up Attacks . | . . . . . . . Damage Inflicted 2224 | . 309 . . 198 1717 . Guns 309 | . 309 . . . . . Cannons 1080 | . . . . 195 885 . Explosions 832 | . . . . . 832 . Melee . | . . . . . . . Ramming 3 | . . . . 3 . . Kinetic 39 | . 39 . . . . . Thermal 1080 | . . . . 195 885 . Explosive 832 | . . . . . 832 . Electromagnetic 270 | . 270 . . . . . Impact . | . . . . . . . Slashing . | . . . . . . . Piercing . | . . . . . . . Highest Corruption 1 | . . . . 1 1 1 Average Corruption 1 | . . . . 1 1 1 Corruption Purged . | . . . . . . . Effects 12 | . . . . 3 9 . Message Errors 7 | . . . . 2 5 . Data Loss (minor) 3 | . . . . 1 2 . Targeting Errors 2 | . . . . . 2 . Overload Shots . | . . . . . . . Overflow Damage 3 | . . . . . 3 . Projectiles . | . . . . . . . Explosions 3 | . . . . . 3 . Melee . | . . . . . . . Knockbacks . | . . . . . . . Impact . | . . . . . . . Kinetic . | . . . . . . . Secondary . | . . . . . . . Self-Inflicted Damage 74 | . . . . 1 73 . Shots 3 | . . . . . 3 . Rammed 1 | . . . . 1 . . Targets Rammed 2 | . . . . 2 . . Kicked 1 | . . . . 1 . . Crushed . | . . . . . . . Highest Temperature 369 | . 87 . . 114 369 . Average Temperature 75 | . 27 . . 50 92 . Received Heat Transfer 264 | . 81 . . 24 159 . Siege Activations . | . . . . . . . Robots Corrupted . | . . . . . . . Combat Hostiles . | . . . . . . . Parts Fried 1 | . . . . 1 . . Impact Corruptions . | . . . . . . . Robots Melted . | . . . . . . . Combat Hostiles . | . . . . . . . Parts Melted 1 | . . . . . 1 . Heat Transferred 1319 | . . . . 261 1058 . Parts Sabotaged . | . . . . . . . Parts Stolen . | . . . . . . . Parts Stripped . | . . . . . . . Power Chain Reactions . | . . . . . . . Missiles Intercepted . | . . . . . . . Alert | -11 -10 -10 -9 -9 -9 -9 ------- Run | Scr Mat Min Mat Sto Gar Rec Peak Influence 1062 | . 207 16 4 358 1062 375 Initial 345 | . . 16 4 1 41 345 Average 287 | . 91 16 4 98 579 356 Maximum Alert Level 3 | . 1 . . 1 3 1 Low Security (%) 56 | 100 83 100 100 90 16 . Level 1 16 | . 16 . . 9 12 100 Level 2 11 | . . . . . 29 . Level 3 15 | . . . . . 41 . Level 4 . | . . . . . . . Level 5 . | . . . . . . . High Security . | . . . . . . . Max Security . | . . . . . . . Squads Dispatched 2 | . . . . 2 . . Investigation 1 | . . . . 1 . . Extermination . | . . . . . . . Reinforcement 1 | . . . . 1 . . Assault . | . . . . . . . Garrison . | . . . . . . . Intercept . | . . . . . . . Construction Impeded . | . . . . . . . Haulers Reinforced . | . . . . . . . Stealth | -11 -10 -10 -9 -9 -9 -9 --------- Run | Scr Mat Min Mat Sto Gar Rec Distress Signals 4 | . . . . 4 . . Communications Jammed . | . . . . . . . Distress Signals . | . . . . . . . Times Spotted 71 | . 13 . . 20 29 9 Peak Tracking Total 6 | . 3 . . 5 6 6 Tactical Retreats 6 | . . . . 2 4 . Traps | -11 -10 -10 -9 -9 -9 -9 ------- Run | Scr Mat Min Mat Sto Gar Rec Traps Triggered 10 | . 1 . . 1 8 . Indirectly . | . . . . . . . Trap Hack Attempts . | . . . . . . . Triggered . | . . . . . . . Disarmed . | . . . . . . . Reprogrammed . | . . . . . . . Reused . | . . . . . . . Traps Extracted . | . . . . . . . Installed . | . . . . . . . Triggered . | . . . . . . . Machines | -11 -10 -10 -9 -9 -9 -9 ---------- Run | Scr Mat Min Mat Sto Gar Rec Machines Disabled 8 | . . . . 4 4 . Max in Single Turn 2 | . . . . 1 2 . Garrison Relay 2 | . . . . . 2 . Phase Generator 1 | . . . . . 1 . Machines Sabotaged . | . . . . . . . Garrisons Compromised . | . . . . . . . Overloaded Fab Kills . | . . . . . . . Fab Network Shutdowns . | . . . . . . . Hacking | -11 -10 -10 -9 -9 -9 -9 --------- Run | Scr Mat Min Mat Sto Gar Rec Machines Accessed 16 | . 4 . . 12 . . Terminals 15 | . 4 . . 11 . . Fabricators . | . . . . . . . Repair Stations . | . . . . . . . Recycling Units . | . . . . . . . Scanalyzers . | . . . . . . . Garrison Access 1 | . . . . 1 . . Total Hacks 36 | . 11 . . 25 . . Successful 30 | . 7 . . 23 . . Failed 6 | . 4 . . 2 . . Catastrophic . | . . . . . . . Database Lockouts . | . . . . . . . Manual 19 | . 7 . . 12 . . Terminals 35 | . 11 . . 24 . . Fabricators . | . . . . . . . Repair Stations . | . . . . . . . Recycling Units . | . . . . . . . Scanalyzers . | . . . . . . . Garrison Access 1 | . . . . 1 . . Terminal Hacks 15 | . 4 . . 11 . . Record 1 | . . . . 1 . . Part Schematic 4 | . . . . 4 . . Robot Analysis 1 | . 1 . . . . . Prototype ID Bank 4 | . 1 . . 3 . . Open Door 3 | . . . . 3 . . Level Access Points 1 | . 1 . . . . . Branch Access Points 1 | . 1 . . . . . Fabricator Hacks . | . . . . . . . Repair Station Hacks . | . . . . . . . Recycling Unit Hacks . | . . . . . . . Scanalyzer . | . . . . . . . Garrison Access Hacks 1 | . . . . 1 . . Unlock Access 1 | . . . . 1 . . Unauthorized Hacks 14 | . 3 . . 11 . . Terminals 14 | . 3 . . 11 . . Botnet 14 | . 3 . . 11 . . Fabricators . | . . . . . . . Repair Stations . | . . . . . . . Recycling Units . | . . . . . . . Scanalyzers . | . . . . . . . Garrison Access . | . . . . . . . Data Cores Recovered . | . . . . . . . Used . | . . . . . . . Hacking Detections 8 | . 3 . . 5 . . Full Trace Events 2 | . 1 . . 1 . . Feedback Events . | . . . . . . . Feedback Blocked . | . . . . . . . Robot Schematics Acquired . | . . . . . . . Robots Built . | . . . . . . . Matter . | . . . . . . . Time . | . . . . . . . Total Robot Build Rating . | . . . . . . . Part Schematics Acquired 4 | . . . . 4 . . Parts Built . | . . . . . . . Matter . | . . . . . . . Time . | . . . . . . . Total Part Build Rating . | . . . . . . . Parts Repaired . | . . . . . . . Time . | . . . . . . . Parts Recycled . | . . . . . . . Recycled Matter . | . . . . . . . Retrieved Matter . | . . . . . . . Retrieved Components . | . . . . . . . Parts Scanalyzed . | . . . . . . . Part Schematics Acquired . | . . . . . . . Parts Damaged . | . . . . . . . Bothacking | -11 -10 -10 -9 -9 -9 -9 ------------ Run | Scr Mat Min Mat Sto Gar Rec Used RIF Installer . | . . . . . . . Robots Hacked . | . . . . . . . Non-combat . | . . . . . . . Combat . | . . . . . . . Robot Hacks Applied . | . . . . . . . Relay Couplers Released 6 | . . . . . 6 . Machine Destruction 6 | . . . . . 6 . Robots Rewired 5 | . . . . . 5 . Allies Hacked . | . . . . . . . Hacks Repelled . | . . . . . . . Allies | -11 -10 -10 -9 -9 -9 -9 -------- Run | Scr Mat Min Mat Sto Gar Rec Total Allies 16 | . . . . 11 5 . Largest Group 11 | . . . . 11 5 . Highest-Rated Group 187 | . . . . 187 63 . Highest-Rated Ally 99 | . . . . 99 21 . Total Orders 3 | . . . . . 3 . EXPLORE 3 | . . . . . 3 . Ally Attacks 113 | . . . . 74 39 . Total Damage 2479 | . . . . 1763 716 . Kills 37 | . . . . 27 10 . Allies Corrupted . | . . . . . . . Allies Melted . | . . . . . . . Intel | -11 -10 -10 -9 -9 -9 -9 ------- Run | Scr Mat Min Mat Sto Gar Rec Robot Analysis Total 1 | . 1 . . . . . Derelict Logs Recovered 1 | . . 1 . . . . Drone Launches 4 | . . . . . 4 . Drone Recoveries 3 | . . . . . 3 . Exploration | -11 -10 -10 -9 -9 -9 -9 ------------- Run | Scr Mat Min Mat Sto Gar Rec Turns Passed 4474 | 56 605 289 24 1540 1680 280 Spaces Moved 2540 | 36 389 187 17 862 868 181 Core 13 | 13 . . . . . . Treads . | . . . . . . . Legs 2527 | 23 389 187 17 862 868 181 Wheels . | . . . . . . . Hover . | . . . . . . . Flight . | . . . . . . . Fastest Speed 50 | 50 120 150 150 150 150 150 Average Speed 152 | 94 137 150 150 150 165 150 Slowest Speed 180 | 120 150 150 150 150 180 150 Overloaded Moves . | . . . . . . . Propulsion Burnouts . | . . . . . . . Robots Hopped . | . . . . . . . Cave-ins Triggered . | . . . . . . . Exploration Rate (%) 51 | 3 75 49 2 94 93 44 Regions Visited 6 Branch Regions 3 Pre-discovered Areas 1 | . . 1 . . . . Known Exits Taken 5 | 1 1 1 1 1 . . Unknown Exits Taken . | . . . . . . . Scrap Searched . | . . . . . . . Spaces Dug . | . . . . . . . Terrain Destroyed 160 | . . . . . 160 . Melee . | . . . . . . . Projectile 1 | . . . . . 1 . AOE 159 | . . . . . 159 . Terrain Rammed . | . . . . . . . Walls Destroyed . | . . . . . . . Machines Disabled . | . . . . . . . Actions | -11 -10 -10 -9 -9 -9 -9 --------- Run | Scr Mat Min Mat Sto Gar Rec Total 3022 | 56 437 196 16 1093 1035 189 Wait 257 | 15 . 10 . 200 24 8 Move 2534 | 35 388 186 16 862 866 181 Hop . | . . . . . . . Pick Up 27 | 3 11 . . 8 5 . Fast Attach 16 | 3 7 . . 4 2 . Attach 5 | . 2 . . 1 2 . Detach 3 | . . . . 2 1 . Swap 7 | . . . . 3 4 . Drop 17 | . 8 . . 3 6 . Fire 68 | . 21 . . 6 41 . Melee . | . . . . . . . Ram . | . . . . . . . Kick 2 | . . . . 2 . . Crush . | . . . . . . . Escape Stasis 40 | . . . . . 40 . Rewire 46 | . . . . 2 44 . Trap . | . . . . . . . Miscellaneous . | . . . . . . . Route ------- -11/Scrapyard -10/Materials (discovered 4 exits: *Mat x3 / *Min) -10/Mines -9/Materials (discovered 2 exits: Min / *Sto) -9/Storage (discovered 3 exits: *Mat / Rec / Gar) -9/Garrison (discovered 3 exits: *Rec x3) -9/Recycling History --------- Turn | Location | Event 7 | -11/Scrapyard | Identified exit to Materials 7 | -11/Scrapyard | Discovered exit to Materials (range 16) 57 | -11/Scrapyard | Entered Materials 57 | -10/Materials | Evolved 1 slot: Utility x1 209 | -10/Materials | Identified exit to Materials 209 | -10/Materials | Discovered exit to Materials (range 6) 325 | -10/Materials | Build established: Hacker-Mutant 398 | -10/Materials | Discovered exit to Materials (range 16) 568 | -10/Materials | Identified exit to Mines 662 | -10/Materials | Entered Mines 805 | -10/Mines | Learned location of Storage (-9) 918 | -10/Mines | Learned location of 1 exit from Materials 929 | -10/Mines | Discovered exit to Materials (range 9) 951 | -10/Mines | Entered Materials 951 | -9/Materials | Evolved 2 slots: Propulsion x1, Utility x1 951 | -9/Materials | Identified exit to Storage 951 | -9/Materials | Discovered exit to Storage (range 15) 952 | -9/Materials | Identified exit to Mines 975 | -9/Materials | Entered Storage 1047 | -9/Storage | Met 01-MTF 1357 | -9/Storage | Assisted by bots powering up and referring to "LRC-V3" 1624 | -9/Storage | Identified exit to Materials 1624 | -9/Storage | Discovered exit to Materials (range 16) 1646 | -9/Storage | Build established: Commander-Mutant 2035 | -9/Storage | Identified exit to Recycling 2035 | -9/Storage | Discovered exit to Recycling (range 10) 2512 | -9/Storage | Identified exit to Garrison 2515 | -9/Storage | Entered Garrison 2515 | -9/Garrison | Accompanied by 6 allies (01-MTF) 2520 | -9/Garrison | 01-MTF left 2664 | -9/Garrison | Triggered checkpoint 2692 | -9/Garrison | Triggered checkpoint 2956 | -9/Garrison | Triggered checkpoint 2967 | -9/Garrison | Build established: Hacker-Mutant 3019 | -9/Garrison | Discovered exit to Recycling (range 10) 3132 | -9/Garrison | Triggered checkpoint 3148 | -9/Garrison | Triggered checkpoint 3208 | -9/Garrison | Discovered exit to Recycling (range 15) 3305 | -9/Garrison | Garrison Relay disabled 3380 | -9/Garrison | Triggered checkpoint 3522 | -9/Garrison | Triggered checkpoint 3555 | -9/Garrison | Garrison Relay disabled 3597 | -9/Garrison | Discovered exit to Recycling (range 12) 3625 | -9/Garrison | Attempted to access garrison exit controls, blocked by remote lockdown 3808 | -9/Garrison | Triggered checkpoint 3908 | -9/Garrison | Phase Generator disabled 4195 | -9/Garrison | Entered Recycling 4303 | -9/Recycling | Spotter reported a threat 4337 | -9/Recycling | Spotter reported a threat 4337 | -9/Recycling | Spotter reported a threat 4356 | -9/Recycling | Spotter reported a threat 4361 | -9/Recycling | Spotter reported a threat 4367 | -9/Recycling | Spotter reported a threat 4369 | -9/Recycling | Spotter reported a threat 4378 | -9/Recycling | Spotter reported a threat 4390 | -9/Recycling | Spotter reported a threat 4390 | -9/Recycling | Spotter reported a threat 4438 | -9/Recycling | Spotter reported a threat 4438 | -9/Recycling | Spotter reported a threat 4438 | -9/Recycling | Spotter reported a threat 4475 | -9/Recycling | Self-destructed Last Messages --------------- 04083_ Field strength at 25. 04084_ Field strength at 10. 04085_ Stasis field depleted. LOCATION=RECYCLING GOAL=ESCAPE 04301_ N-01 Spotter is scanning... 04303_ N-01 Spotter sends a signal. 04303_ ALERT: Unidentified potential threat approaching Factory. 04335_ N-01 Spotter is scanning... 04337_ N-01 Spotter sends a signal. 04337_ ALERT: Unidentified potential threat approaching Factory. 04356_ N-01 Spotter sends a signal. 04356_ ALERT: Unidentified potential threat approaching Factory. 04361_ N-01 Spotter sends a signal. 04361_ ALERT: Unidentified potential threat approaching Factory. 04388_ N-01 Spotter is scanning... 04390_ ALERT: Unidentified potential threat approaching Factory. 04436_ N-01 Spotter is scanning... 04438_ ALERT: Unidentified potential threat approaching Factory. 04474_ N-01 Spotter is scanning... Map ----- +----------------------------------------------------+ | # #?????????????????????????????????????? | | # #?????????????????????????????????????? | | # ######????????????????????????????????? | | # ???????????????????????????????? | | # ???????????????????????????????? | | # ???????????????????????????????? | | # """ """ ????????????????????????????????? | | " """""""??????????????????????????????????? | | T """"" ? ???????????????????????????? | | " #??????????????????????????? | | # #??????????????????????????? | | # #??????????????????????????? | | # #??????????????????????????? | | # ###T# +??????????????????????????? | | # %%### ? #??????????????????????????? | | # %#??? ?? #??????????????????????????? | | # % #???? ??? #??????????????????????????? | | # ############## #??????????????????????????? | | # % ## # #??????????????????????????? | | # %%## # #??????????????????????????? | | # %%# # #??????????????????????????? | | # #### # #??????????????????????????? | | # #??# # #??????????????????????????? | | # #?## + #??????????????????????????? | | # #?# # ############???????????????? | | # #?## # n @ r r r #??????????? | | # ########+##### ########## #??????????? | | # #??????????????????????????? | | ################+###+##??????????????????????????? | | ??????????????? ???????????????????????????????? | | ??????????????? ???????????????????????????????? | | ??????????????# ??????????????????????????????? | | ??????????????# ??????????????????????????????? | | ??????????????# ?????????????????????????????? | | ??????????????# ?????????????????????????????? | | ??????????????# ????????????????????????????? | | ??????????????# ????????????????????????????? | | ?????????????? ???????????????????????????? | | ??????????????# ???????????????????????????? | | ??????????????# ??????????????????????????? | | ??????????????? ??????????????????????????? | | ???????????????######????????????????????????????? | | ?????????????????????????????????????????????????? | | ?????????????????????????????????????????????????? | | ?????????????????????????????????????????????????? | | ?????????????????????????????????????????????????? | | | | | | | | | +----------------------------------------------------+ Best States ------------- Heat Dissipation 28 Energy Generation 14 Energy Capacity 280 Matter Stores 300 Matter Capacity 300 Sight Range 16 Robot Scan Range 10 Terrain Scan Range 16 Terrain Scan Density 10 Armor Coverage 225 Resistance: KI 35 Resistance: TH 35 Resistance: EX 35 Resistance: EM 35 Resistance: I 35 Resistance: S 35 Resistance: P 35 Evasion (%) 40 Offensive Hacking 20 Item Schematics ----------------- Shock Bomb Launcher | -9/Storage | Hacked Thermal Generator | -9/Storage | Hacked Hrd. Light Armor Plating | -9/Storage | Hacked Adv. Treads | -9/Storage | Hacked Robot Schematics ------------------ None Fabricated ------------ Nothing Alien Tech Used ----------------- None Achievements -------------- None Challenges ------------ None Game ------ Seed StealthSystemStreamer Manual? 0 Play Time 00:31:05 Cumulative 76.7 hours Start 2020.10.05 @ 20:11:32 End 2020.10.05 @ 21:03:35 Sessions 1 Manual Loads 0 Difficulty Explorer Special Mode None Game No. 132 Rogue 0 Adventurer 0 Explorer 132 Win Type - Total 0 Types 0/0/0/0/0/0/0/0/0 Lore% 50 Gallery% 62 Achievement% 48 Wizard Run 0 Options --------- ASCII 0 Keyboard 0 Movement Numpad Keybinds 0 Fullscreen 1 Font 36/Smallcaps Map View 76x50 Tactical HUD 1 Map Filters NONE Filters NONE Steam 1 RUN: 560b98b5-8f35-44f7-95fb-f7149e3e8839